fUST/lending_fUST_20240618
["ID","MTS","AMOUNT","RATE_DAILY","PERIOD"]
[329771049,1718659845136,-683.40656383,0.00019178,2]
[329771050,1718659845146,-683.40656383,0.00019178,2]
[329771051,1718659845155,-683.40656383,0.00019178,2]
[329771052,1718659845165,-683.40656381,0.00019178,2]
[329771053,1718659845175,-683.40656381,0.00019178,2]
[329771054,1718659845322,-500.0,0.00019178,2]
[329771055,1718659845332,-500.0,0.00019178,2]
[329771056,1718659845341,-373.70978775,0.00019178,2]
[329771057,1718659845350,-500.0,0.00019178,2]
[329771058,1718659845362,-500.0,0.00019178,2]
[329771059,1718659845371,-500.0,0.00019178,2]
[329771060,1718659845380,-650.1712584,0.00019178,2]
[329771061,1718659845390,-500.0,0.00019178,2]
[329771062,1718659845399,-500.0,0.00019178,2]
[329771063,1718659845408,-500.0,0.00019178,2]
[329771064,1718659845418,-500.0,0.00019178,2]
[329771065,1718659845428,-380.97539769,0.00019178,2]
[329771066,1718659845438,-500.0,0.00019178,2]
[329771067,1718659845448,-500.0,0.00019178,2]
[329771068,1718659845458,-500.0,0.00019178,2]
[329771069,1718659845469,-500.0,0.00019178,2]
[329771070,1718659845479,-500.0,0.00019178,2]
[329771071,1718659845488,-461.22953057,0.00019178,2]
[329771072,1718659845498,-500.0,0.00019178,2]
[329771073,1718659845507,-500.0,0.00019178,2]
[329771074,1718659845517,-500.0,0.00019178,2]
[329771075,1718659845526,-500.0,0.00019178,2]
[329771076,1718659845536,-500.0,0.00019178,2]
[329771077,1718659845546,-500.0,0.00019178,2]
[329771078,1718659845556,-500.0,0.00019178,2]
[329771079,1718659845567,-500.0,0.00019178,2]
[329771080,1718659845579,-500.0,0.00019178,2]
[329771081,1718659845589,-500.0,0.00019178,2]
[329771082,1718659845599,-500.0,0.00019178,2]
[329771083,1718659845611,-500.0,0.00019178,2]
[329771084,1718659845620,-500.0,0.00019178,2]
[329771085,1718659845629,-500.0,0.00019178,2]
[329771086,1718659845639,-500.0,0.00019178,2]
[329771087,1718659845650,-566.85362555,0.00019178,2]
[329771088,1718659845659,-500.0,0.00019178,2]
[329771089,1718659845669,-500.0,0.00019178,2]
[329771090,1718659845680,-500.0,0.00019178,2]
[329771091,1718659845689,-500.0,0.00019178,2]
[329771092,1718659845699,-500.0,0.00019178,2]
[329771093,1718659845708,-500.0,0.00019178,2]
[329771094,1718659845717,-500.0,0.00019178,2]
[329771095,1718659845727,-500.0,0.00019178,2]
[329771096,1718659845736,-500.0,0.00019178,2]
[329771097,1718659845746,-500.0,0.00019178,2]
[329771098,1718659845756,-500.0,0.00019178,2]
[329771099,1718659845765,-500.0,0.00019178,2]
[329771100,1718659845775,-500.0,0.00019178,2]
[329771101,1718659845784,-500.0,0.00019178,2]
[329771102,1718659845793,-500.0,0.00019178,2]
[329771103,1718659845803,-500.0,0.00019178,2]
[329771104,1718659845812,-500.0,0.00019178,2]
[329771105,1718659845822,-500.0,0.00019178,2]
[329771106,1718659845831,-500.0,0.00019178,2]
[329771107,1718659845841,-500.0,0.00019178,2]
[329771108,1718659845850,-500.0,0.00019178,2]
[329771109,1718659845861,-500.0,0.00019178,2]
[329771112,1718659845870,-500.0,0.00019178,2]
[329771114,1718659845880,-500.0,0.00019178,2]
[329771117,1718659845889,-500.0,0.00019178,2]
[329771120,1718659845899,-500.0,0.00019178,2]
[329771122,1718659845909,-500.0,0.00019178,2]
[329771124,1718659845919,-500.0,0.00019178,2]
[329771125,1718659845929,-500.0,0.00019178,2]
[329771126,1718659845939,-500.0,0.00019178,2]
[329771127,1718659845948,-200.0,0.00019178,2]
[329771128,1718659845958,-500.0,0.00019178,2]
[329771129,1718659845967,-500.0,0.00019178,2]
[329771130,1718659845976,-500.0,0.00019178,2]
[329771131,1718659845986,-170.90829025,0.00019178,2]
[329771132,1718659845996,-1068.3,0.00019178,2]
[329771133,1718659846005,-294.222157,0.00019178,2]
[329771134,1718659846015,-722.44,0.00019408,2]
[329771135,1718659846025,-338.1,0.00019413,2]
[329771136,1718659846034,-574.26,0.0001945,2]
[329771137,1718659846044,-235.96209394,0.0001945,2]
[329771138,1718659846053,-1403.75,0.0001945,2]
[329771139,1718659846063,-500.0,0.0001945,2]
[329771140,1718659846073,-500.0,0.0001945,2]
[329771141,1718659846082,-500.0,0.0001945,2]
[329771143,1718659846092,-500.0,0.0001945,2]
[329771145,1718659846101,-1068.3,0.00019452,2]
[329771147,1718659846112,-153.0,0.00019491,2]
[329771148,1718659846122,-153.0,0.00019491,2]
[329771149,1718659846132,-153.0,0.00019491,2]
[329771150,1718659846141,-1000.0,0.000195,2]
[329771151,1718659846151,-722.44,0.00019682,2]
[329771152,1718659846161,-574.26,0.00019724,2]
[329771153,1718659846171,-1403.75,0.00019724,2]
[329771154,1718659846180,-500.0,0.00019724,2]
[329771155,1718659846190,-500.0,0.00019724,2]
[329771156,1718659846199,-342.98774794,0.00019724,2]
[329771157,1718659846208,-500.0,0.00019724,2]
[329771158,1718659846218,-1068.3,0.00019726,2]
[329771159,1718659846227,-338.1,0.0001991,2]
[329771160,1718659846237,-722.44,0.00019956,2]
[329771161,1718659846246,-574.26,0.00019998,2]
[329771162,1718659846255,-1403.75,0.00019998,2]
[329771163,1718659846265,-500.0,0.00019998,2]
[329771164,1718659846275,-500.0,0.00019998,2]
[329771165,1718659846285,-500.0,0.00019998,2]
[329771166,1718659846295,-160.0,0.0002,2]
[329771167,1718659846305,-155.0,0.0002,2]
[329771168,1718659846315,-561.82106883,0.0002,2]
[329771169,1718659846325,-435.0,0.0002,2]
[329771170,1718659846335,-4165.69320212,0.0002,2]
[329771171,1718659846345,-1116.27702655,0.0002,2]
[329771172,1718659846357,-160.0,0.0002,2]
[329771173,1718659846366,-1068.3,0.0002,2]
[329771174,1718659846375,-252.044461,0.0002,2]
[329771175,1718659846384,-150.0,0.0002,2]
[329771176,1718659846394,-1000.0,0.0002,2]
[329771177,1718659846403,-150.95471359,0.00020141,2]
[329771178,1718659846412,-722.44,0.0002023,2]
[329771179,1718659846422,-574.26,0.00020272,2]
[329771180,1718659846433,-1403.75,0.00020272,2]
[329771181,1718659846442,-500.0,0.00020272,2]
[329771182,1718659846451,-500.0,0.00020272,2]
[329771183,1718659846461,-500.0,0.00020272,2]
[329771184,1718659846471,-1068.3,0.00020273,2]
[329771185,1718659846481,-338.1,0.00020407,2]
[329771186,1718659846490,-151.0,0.00020407,2]
[329771187,1718659846499,-722.44,0.00020504,2]
[329771188,1718659846509,-205.5312875,0.00020521,2]
[329771189,1718659846519,-205.5312875,0.00020521,2]
[329771190,1718659846528,-574.26,0.00020546,2]
[329771191,1718659846538,-1403.75,0.00020546,2]
[329771192,1718659846548,-500.0,0.00020546,2]
[329771193,1718659846560,-500.0,0.00020546,2]
[329771194,1718659846571,-500.0,0.00020546,2]
[329771195,1718659846581,-1068.3,0.00020547,2]
[329771196,1718659846590,-245.82193853,0.00020708,2]
[329771197,1718659846600,-722.44,0.00020778,2]
[329771198,1718659846611,-1750.0,0.00020792,2]
[329771199,1718659846623,-574.26,0.0002082,2]
[329771200,1718659846632,-1403.75,0.0002082,2]
[329771201,1718659846642,-500.0,0.0002082,2]
[329771202,1718659846655,-500.0,0.0002082,2]
[329771203,1718659846665,-500.0,0.0002082,2]
[329771204,1718659846675,-1068.3,0.00020821,2]
[329771205,1718659846685,-338.1,0.00020905,3]
[329771206,1718659846695,-151.0,0.00020905,3]
[329771207,1718659846704,-1000.0,0.00021,21]
[329771208,1718659846713,-150.0,0.00021,2]
[329771209,1718659846723,-722.44,0.00021052,2]
[329771210,1718659846732,-150.0,0.00021093,2]
[329771211,1718659846742,-574.26,0.00021093,2]
[329771212,1718659846752,-1403.75,0.00021093,2]
[329771213,1718659846761,-203.46863977,0.00021093,2]
[329771214,1718659846771,-500.0,0.00021093,2]
[329771215,1718659846780,-455.92061131,0.00021093,2]
[329771216,1718659846796,-44.07938869,0.00021093,2]
[329771217,1718659846806,-1068.3,0.00021095,2]
[329771218,1718659846815,-205.5312875,0.00021182,2]
[329771219,1718659846824,-160.0,0.00021319,3]
[329771220,1718659846834,-722.44,0.00021326,2]
[329771221,1718659846843,-95.99301302,0.00021342,2]
[329771222,1718659846908,-47.19397256,0.00021342,2]
[329771223,1718659847067,-665.13,0.00018354,2]
[329771224,1718659847078,-665.13,0.00018628,2]
[329771225,1718659847087,-665.13,0.00018902,2]
[329771226,1718659847097,-665.13,0.00019176,2]
[329771227,1718659847108,-665.13,0.0001945,2]
[329771228,1718659847118,-665.13,0.00019724,2]
[329771229,1718659847128,-665.13,0.00019998,2]
[329771230,1718659847138,-665.13,0.00020272,2]
[329771231,1718659847150,-665.13,0.00020546,2]
[329771232,1718659847159,-665.13,0.0002082,2]
[329771233,1718659847168,-62.34430192,0.00021342,2]
[329771234,1718659847178,-205.5312875,0.00021342,2]
[329771235,1718659847187,-205.5312875,0.00021342,2]
[329771236,1718659847196,-411.062575,0.00021342,2]
[329771237,1718659847206,-574.26,0.00021367,2]
[329771238,1718659847215,-1403.75,0.00021367,2]
[329771239,1718659847225,-500.0,0.00021367,2]
[329771240,1718659847234,-500.0,0.00021367,2]
[329771241,1718659847243,-1068.3,0.00021369,2]
[329771242,1718659847252,-338.1,0.00021402,3]
[329771243,1718659847262,-151.0,0.00021402,3]
[329771244,1718659847271,-600.0,0.00021504,2]
[329771245,1718659847281,-722.44,0.000216,2]
[329771246,1718659847291,-574.26,0.00021641,2]
[329771247,1718659847300,-1403.75,0.00021641,2]
[329771248,1718659847309,-500.0,0.00021641,2]
[329771249,1718659847319,-500.0,0.00021641,2]
[329771250,1718659847328,-1068.3,0.00021643,2]
[329771251,1718659847337,-187.46396613,0.00021697,2]
[329771252,1718659847347,-157.80731331,0.00021697,2]
[329771253,1718659847358,-750.0,0.00021728,2]
[329771254,1718659847367,-2000.0,0.00021817,2]
[329771255,1718659847375,-722.44,0.00021873,2]
[329771256,1718659847385,-338.1,0.00021899,3]
[329771257,1718659847394,-151.0,0.00021899,3]
[329771258,1718659847404,-574.26,0.00021915,2]
[329771259,1718659847413,-1403.75,0.00021915,2]
[329771260,1718659847423,-500.0,0.00021915,2]
[329771261,1718659847433,-500.0,0.00021915,2]
[329771262,1718659847442,-303.75,0.00021917,2]
[329771263,1718659847451,-303.75,0.00021917,2]
[329771264,1718659847461,-303.75,0.00021917,2]
[329771265,1718659847471,-303.75,0.00021917,2]
[329771266,1718659847481,-303.75,0.00021917,2]
[329771267,1718659847491,-303.75,0.00021917,2]
[329771268,1718659847500,-303.75,0.00021917,2]
[329771269,1718659847510,-303.75,0.00021917,2]
[329771270,1718659847519,-303.75,0.00021917,2]
[329771271,1718659847529,-303.75,0.00021917,2]
[329771272,1718659847538,-303.75,0.00021917,2]
[329771273,1718659847547,-303.75,0.00021917,2]
[329771274,1718659847557,-303.75,0.00021917,2]
[329771275,1718659847567,-303.75,0.00021917,2]
[329771276,1718659847579,-303.75,0.00021917,2]
[329771277,1718659847589,-303.75,0.00021917,2]
[329771278,1718659847599,-303.75,0.00021917,2]
[329771279,1718659847610,-303.75,0.00021917,2]
[329771280,1718659847621,-303.75,0.00021917,2]
[329771281,1718659847632,-1068.3,0.00021917,2]
[329771282,1718659847642,-166.666666,0.00021918,2]
[329771283,1718659847654,-1185.73207073,0.00021978,6]
[329771284,1718659847664,-160.0,0.00021999,2]
[329771285,1718659847673,-160.0,0.00021999,2]
[329771286,1718659847683,-11620.90976734,0.00022,2]
[329771287,1718659847692,-50.0432316,0.00022,2]
[329774566,1718660989636,-411.04939793,9.997e-05,2]
[329774569,1718660989675,-110.05798785,9.997e-05,2]
[329774570,1718660989703,-300.99141008,9.998e-05,2]
[329774572,1718660989738,-170.34792105,9.998e-05,2]
[329774601,1718661035664,-1693.11395485,0.00015,2]
[329774602,1718661035675,-1303.83029047,0.00015,2]
[329774603,1718661035684,-160.34896918,0.00015441,2]
[329774604,1718661035693,-37.3578569,0.00015538,2]
[329774605,1718661035706,-483.74952888,0.00015538,2]
[329774606,1718661035715,-2573.51047112,0.00015539,2]
[329774607,1718661035727,-2473.48495548,0.00015539,2]
[329774608,1718661035739,-334.86214888,0.00015539,2]
[329774626,1718661038577,-3034.48242176,0.00015539,2]
[329774628,1718661038850,-27071.40639549,0.00015539,2]
[329774629,1718661038860,-1060.14425486,0.0001554,2]
[329774630,1718661038871,-34738.77812561,0.0001554,2]
[329774631,1718661038880,-197.04847737,0.00015541,2]
[329774632,1718661038890,-1501.26270931,0.00015541,2]
[329774633,1718661038900,-1442.75395102,0.00015542,2]
[329774634,1718661038909,-722.06198513,0.00015544,2]
[329774635,1718661038919,-16566.30380222,0.00015544,2]
[329774665,1718661044092,-479.1931903,0.00015537,2]
[329774667,1718661044104,-608.08628642,0.00015537,2]
[329774669,1718661044113,-1516.3840104,0.00015544,2]
[329774670,1718661044125,-1804.323423,0.00015544,2]
[329774671,1718661044137,-4392.90770746,0.00015544,2]
[329774672,1718661044146,-6614.08315279,0.00015545,2]
[329774673,1718661044156,-471.01249892,0.00015545,2]
[329774674,1718661044165,-128.24302127,0.00015546,2]
[329774692,1718661047096,-26.90241404,0.00015546,2]
[329774693,1718661047106,-255.59758596,0.00015547,2]
[329774694,1718661047118,-5288.28956723,0.00015547,2]
[329774719,1718661943175,-154.93802479,9.982e-05,2]
[329774720,1718661943195,-521.10738578,9.983e-05,2]
[329774721,1718661943214,-1031.341696,9.999e-05,2]
[329774722,1718661943234,-34.29767325,0.00012947,2]
[329774746,1718662232703,-521.10738578,0.00012944,2]
[329774747,1718662232713,-47.89261422,0.00012945,2]
[329774749,1718662232725,-107.16936099,0.00012945,2]
[329774751,1718662232735,-806.32742001,0.00012947,2]
[329774753,1718662232746,-269.24912565,0.00012947,2]
[329774796,1718662238799,-11220.34265571,0.00012947,2]
[329774798,1718662238813,-998.84537,0.00012947,2]
[329774800,1718662238824,-3792.79999999,0.00012947,2]
[329774802,1718662238835,-655.23892612,0.00012947,2]
[329774822,1718662242775,-4420.36875664,0.00012947,2]
[329774823,1718662242787,-2702.53007263,0.00012947,2]
[329774824,1718662242797,-172.751331,0.00013699,2]
[329774825,1718662242806,-222.31738349,0.00014534,2]
[329774826,1718662242818,-165.85449308,0.00014534,2]
[329774827,1718662242828,-161.21119232,0.00014534,2]
[329774828,1718662242837,-216.87670251,0.00014534,2]
[329774829,1718662242847,-775.00790126,0.00014534,2]
[329774830,1718662242856,-174.47194654,0.00014535,2]
[329774831,1718662242865,-15730.98354147,0.00015,2]
[329774832,1718662242877,-19007.79458414,0.00015,2]
[329774833,1718662242887,-1693.11395485,0.00015,2]
[329774834,1718662242897,-1303.83029047,0.00015,2]
[329774835,1718662242906,-155.03565734,0.00015544,2]
[329774836,1718662242916,-569.0,0.00015544,2]
[329774837,1718662242926,-1346.42687486,0.00015546,2]
[329774838,1718662242938,-17693.03623497,0.00015546,2]
[329774839,1718662242947,-154.93802479,0.00015547,2]
[329774840,1718662242957,-489.77886636,0.000156,2]
[329774841,1718662242966,-500.0,0.00016438,2]
[329774842,1718662242976,-500.0,0.00016438,2]
[329774843,1718662242986,-500.0,0.00016438,2]
[329774844,1718662242995,-500.0,0.00016438,2]
[329774845,1718662243005,-500.0,0.00016438,2]
[329774846,1718662243015,-500.0,0.00016438,2]
[329774847,1718662243024,-500.0,0.00016438,2]
[329774848,1718662243033,-500.0,0.00016438,2]
[329774849,1718662243043,-500.0,0.00016438,2]
[329774850,1718662243052,-500.0,0.00016438,2]
[329774851,1718662243064,-500.71834441,0.00016438,2]
[329774852,1718662243073,-500.0,0.00016438,2]
[329774853,1718662243082,-500.0,0.00016438,2]
[329774854,1718662243091,-500.0,0.00016438,2]
[329774855,1718662243100,-500.0,0.00016438,2]
[329774856,1718662243110,-500.0,0.00016438,2]
[329774857,1718662243119,-500.0,0.00016438,2]
[329774864,1718662243243,-500.0,0.00016438,2]
[329774866,1718662243253,-500.0,0.00016438,2]
[329774868,1718662243264,-500.0,0.00016438,2]
[329774870,1718662243273,-500.0,0.00016438,2]
[329774872,1718662243283,-500.0,0.00016438,2]
[329774873,1718662243293,-500.0,0.00016438,2]
[329774874,1718662243302,-500.0,0.00016438,2]
[329774875,1718662243314,-310.51119294,0.00016438,2]
[329774876,1718662243323,-500.0,0.00016438,2]
[329774877,1718662243332,-500.0,0.00016438,2]
[329774878,1718662243341,-500.0,0.00016438,2]
[329774879,1718662243351,-500.0,0.00016438,2]
[329774880,1718662243360,-500.0,0.00016438,2]
[329774881,1718662243375,-506.66800841,0.00016438,2]
[329774882,1718662243384,-500.0,0.00016438,2]
[329774883,1718662243394,-500.0,0.00016438,2]
[329774884,1718662243404,-500.0,0.00016438,2]
[329774885,1718662243414,-500.0,0.00016438,2]
[329774886,1718662243423,-500.0,0.00016438,2]
[329774887,1718662243432,-78.21830195,0.00016438,2]
[329774920,1718662244184,-392.1959995,0.00016438,2]
[329774923,1718662244238,-29.58569855,0.00016438,2]
[329774924,1718662244247,-500.0,0.00016438,2]
[329774925,1718662244256,-500.0,0.00016438,2]
[329774926,1718662244266,-500.0,0.00016438,2]
[329774927,1718662244275,-500.0,0.00016438,2]
[329774928,1718662244285,-2487.73,0.00016438,2]
[329774929,1718662244295,-500.0,0.00016438,2]
[329774930,1718662244304,-500.0,0.00016438,2]
[329774931,1718662244314,-500.0,0.00016438,2]
[329774932,1718662244323,-500.0,0.00016438,2]
[329774933,1718662244332,-500.0,0.00016438,2]
[329774934,1718662244341,-500.0,0.00016438,2]
[329774935,1718662244351,-500.0,0.00016438,2]
[329774936,1718662244362,-500.0,0.00016438,2]
[329774937,1718662244381,-500.0,0.00016438,2]
[329774938,1718662244399,-500.0,0.00016438,2]
[329774939,1718662244412,-500.0,0.00016438,2]
[329774940,1718662244421,-500.0,0.00016438,2]
[329774941,1718662244431,-500.0,0.00016438,2]
[329774942,1718662244441,-500.0,0.00016438,2]
[329774943,1718662244450,-500.0,0.00016438,2]
[329774944,1718662244459,-455.76916122,0.00016438,2]
[329774945,1718662244472,-44.23083878,0.00016438,2]
[329774946,1718662244482,-500.0,0.00016438,2]
[329774947,1718662244491,-500.0,0.00016438,2]
[329774948,1718662244500,-500.0,0.00016438,2]
[329774949,1718662244510,-500.0,0.00016438,2]
[329774950,1718662244519,-500.0,0.00016438,2]
[329774951,1718662244529,-505.53855053,0.00016438,2]
[329774952,1718662244538,-500.0,0.00016438,2]
[329774953,1718662244547,-500.0,0.00016438,2]
[329774954,1718662244556,-500.0,0.00016438,2]
[329774955,1718662244566,-500.0,0.00016438,2]
[329774956,1718662244575,-500.0,0.00016438,2]
[329774957,1718662244584,-500.0,0.00016438,2]
[329774958,1718662244594,-500.0,0.00016438,2]
[329774959,1718662244603,-500.0,0.00016438,2]
[329774960,1718662244612,-500.0,0.00016438,2]
[329774961,1718662244622,-500.0,0.00016438,2]
[329774962,1718662244631,-500.0,0.00016438,2]
[329774963,1718662244640,-500.0,0.00016438,2]
[329774964,1718662244649,-500.0,0.00016438,2]
[329774965,1718662244659,-500.45688317,0.00016438,2]
[329774966,1718662244668,-500.0,0.00016438,2]
[329774967,1718662244677,-500.0,0.00016438,2]
[329774968,1718662244686,-363.82141599,0.00016438,2]
[329774969,1718662244696,-587.55689518,0.00016438,2]
[329774970,1718662244705,-500.0,0.00016438,2]
[329774971,1718662244714,-500.0,0.00016438,2]
[329774972,1718662244723,-500.0,0.00016438,2]
[329774973,1718662244732,-502.022016,0.00016438,2]
[329774974,1718662244741,-500.0,0.00016438,2]
[329774975,1718662244750,-500.0,0.00016438,2]
[329774976,1718662244758,-500.0,0.00016438,2]
[329774977,1718662244768,-500.0,0.00016438,2]
[329774978,1718662244777,-500.0,0.00016438,2]
[329774979,1718662244786,-559.51643905,0.00016438,2]
[329774980,1718662244795,-500.0,0.00016438,2]
[329774981,1718662244804,-500.0,0.00016438,2]
[329774982,1718662244814,-500.0,0.00016438,2]
[329774983,1718662244824,-200.78800434,0.00016438,2]
[329774984,1718662244833,-500.0,0.00016438,2]
[329774985,1718662244842,-500.0,0.00016438,2]
[329774986,1718662244851,-500.0,0.00016438,2]
[329774987,1718662244860,-780.92,0.00016438,2]
[329774988,1718662244870,-500.0,0.00016438,2]
[329774989,1718662244879,-1867.13,0.00016438,2]
[329774990,1718662244888,-500.0,0.00016438,2]
[329774991,1718662244898,-500.0,0.00016438,2]
[329774992,1718662244907,-1463.9,0.00016438,2]
[329774993,1718662244916,-803.31,0.00016438,2]
[329774994,1718662244925,-500.0,0.00016438,2]
[329774995,1718662244934,-500.0,0.00016438,2]
[329774996,1718662244944,-500.0,0.00016438,2]
[329774997,1718662244953,-500.0,0.00016438,2]
[329774998,1718662244962,-500.0,0.00016438,2]
[329774999,1718662244971,-500.0,0.00016438,2]
[329775000,1718662244980,-500.0,0.00016438,2]
[329775001,1718662244991,-1518.45,0.00016438,2]
[329775002,1718662245000,-500.0,0.00016438,2]
[329775003,1718662245010,-1355.51,0.00016438,2]
[329775004,1718662245019,-500.0,0.00016438,2]
[329775005,1718662245029,-500.0,0.00016438,2]
[329775006,1718662245040,-500.0,0.00016438,2]
[329775007,1718662245049,-500.0,0.00016438,2]
[329775008,1718662245059,-630.63637782,0.00016438,2]
[329775009,1718662245069,-500.0,0.00016438,2]
[329775010,1718662245078,-500.0,0.00016438,2]
[329775011,1718662245087,-506.76649597,0.00016438,2]
[329775012,1718662245097,-168.08187762,0.00016438,2]
[329775013,1718662245106,-500.0,0.00016438,2]
[329775014,1718662245115,-500.0,0.00016438,2]
[329775015,1718662245124,-500.0,0.00016438,2]
[329775016,1718662245133,-548.51672985,0.00016438,2]
[329775017,1718662245143,-500.0,0.00016438,2]
[329775018,1718662245152,-500.0,0.00016438,2]
[329775019,1718662245161,-500.0,0.00016438,2]
[329775020,1718662245171,-500.0,0.00016438,2]
[329775021,1718662245180,-500.0,0.00016438,2]
[329775022,1718662245189,-500.0,0.00016438,2]
[329775023,1718662245199,-3634.11,0.00016438,2]
[329775024,1718662245208,-500.0,0.00016438,2]
[329775025,1718662245218,-500.0,0.00016438,2]
[329775026,1718662245228,-2089.52,0.00016438,2]
[329775027,1718662245237,-502.83063486,0.00016438,2]
[329775028,1718662245247,-500.0,0.00016438,2]
[329775029,1718662245256,-500.0,0.00016438,2]
[329775030,1718662245265,-500.0,0.00016438,2]
[329775031,1718662245275,-500.0,0.00016438,2]
[329775032,1718662245284,-175.13700651,0.00016438,2]
[329775033,1718662245293,-500.0,0.00016438,2]
[329775034,1718662245302,-500.0,0.00016438,2]
[329775035,1718662245312,-500.0,0.00016438,2]
[329775036,1718662245322,-500.0,0.00016438,2]
[329775037,1718662245332,-500.0,0.00016438,2]
[329775038,1718662245341,-500.0,0.00016438,2]
[329775039,1718662245350,-500.0,0.00016438,2]
[329775040,1718662245360,-500.0,0.00016438,2]
[329775041,1718662245374,-500.0,0.00016438,2]
[329775042,1718662245384,-500.0,0.00016438,2]
[329775043,1718662245393,-500.0,0.00016438,2]
[329775044,1718662245403,-500.0,0.00016438,2]
[329775045,1718662245413,-500.0,0.00016438,2]
[329775046,1718662245422,-431.57382,0.00016438,2]
[329775047,1718662245432,-500.0,0.00016438,2]
[329775048,1718662245442,-500.0,0.00016438,2]
[329775049,1718662245452,-500.0,0.00016438,2]
[329775050,1718662245461,-500.0,0.00016438,2]
[329775051,1718662245470,-140.9144566,0.00016438,2]
[329775052,1718662245484,-359.0855434,0.00016438,2]
[329775053,1718662245493,-108.73728403,0.00016438,2]
[329775071,1718662247195,-465.90924791,0.00015447,2]
[329775072,1718662247205,-391.26271597,0.00016438,2]
[329775073,1718662247215,-500.0,0.00016438,2]
[329775074,1718662247224,-749.55,0.00016438,2]
[329775075,1718662247233,-500.0,0.00016438,2]
[329775076,1718662247243,-500.0,0.00016438,2]
[329775077,1718662247253,-500.0,0.00016438,2]
[329775078,1718662247262,-500.0,0.00016438,2]
[329775079,1718662247272,-500.0,0.00016438,2]
[329775080,1718662247282,-500.0,0.00016438,2]
[329775081,1718662247291,-500.0,0.00016438,2]
[329775082,1718662247301,-500.0,0.00016438,2]
[329775084,1718662247310,-500.0,0.00016438,2]
[329775085,1718662247322,-500.0,0.00016438,2]
[329775086,1718662247331,-500.0,0.00016438,2]
[329775087,1718662247340,-500.0,0.00016438,2]
[329775088,1718662247350,-500.0,0.00016438,2]
[329775089,1718662247359,-500.0,0.00016438,2]
[329775090,1718662247374,-580.43,0.00016438,2]
[329775091,1718662247384,-500.0,0.00016438,2]
[329775092,1718662247394,-500.0,0.00016438,2]
[329775093,1718662247403,-500.0,0.00016438,2]
[329775094,1718662247414,-500.0,0.00016438,2]
[329775095,1718662247423,-500.0,0.00016438,2]
[329775096,1718662247432,-500.0,0.00016438,2]
[329775097,1718662247442,-500.0,0.00016438,2]
[329775098,1718662247454,-1240.65,0.00016438,2]
[329775099,1718662247464,-500.0,0.00016438,2]
[329775100,1718662247474,-500.0,0.00016438,2]
[329775101,1718662247484,-500.0,0.00016438,2]
[329775102,1718662247493,-500.0,0.00016438,2]
[329775103,1718662247502,-211.79058606,0.00016438,2]
[329775104,1718662247512,-500.0,0.00016438,2]
[329775105,1718662247522,-604.82,0.00016438,2]
[329775106,1718662247532,-500.0,0.00016438,2]
[329775107,1718662247541,-500.0,0.00016438,2]
[329775108,1718662247551,-500.0,0.00016438,2]
[329775109,1718662247561,-500.0,0.00016438,2]
[329775110,1718662247571,-521.1549641,0.00016438,2]
[329775111,1718662247580,-500.0,0.00016438,2]